bitfinex/quotes_SOLUSD_20250424
["timestamp","ask_amount","ask_price","bid_price","bid_amount"]
[1745525205524,82.73,151.86,151.84,18.79181043]
[1745525205728,0.03,151.86,151.85,30.13660933]
[1745525205914,0.03,151.86,151.85,36.72205549]
[1745525206114,0.03,151.86,151.85,41.59327447]
[1745525206336,0.03,151.86,151.85,44.02868949]
[1745525206542,1e-08,151.87,151.86,30.13660933]
[1745525207322,1e-08,151.87,151.86,37.44324333]
[1745525208054,1e-08,151.87,151.86,44.02825584]
[1745525208335,0.063,151.88,151.86,7.306634]
[1745525208943,0.063,151.88,151.87,4.87121898]
[1745525209745,0.063,151.88,151.86,4.87121898]
[1745525211448,0.063,151.88,151.86,16.21601788]
[1745525212023,0.063,151.88,151.86,22.8007339]
[1745525212653,0.063,151.88,151.87,4.87121898]
[1745525214423,0.063,151.88,151.87,16.21601788]
[1745525214825,0.063,151.88,151.87,22.80059679]
[1745525215327,0.063,151.88,151.87,25.23632644]
[1745525216761,0.063,151.88,151.87,57.30813687]
[1745525217153,0.03,151.91,151.87,75.40918416]
[1745525217457,0.03,151.91,151.9,11.3447989]
[1745525217951,0.03,151.91,151.9,16.21601788]
[1745525218358,0.03,151.91,151.9,22.79929635]
[1745525219252,0.03,151.91,151.9,25.23429423]
[1745525219728,0.03,151.91,151.9,7.30621686]
[1745525220064,0.03,151.91,151.9,4.87121898]
[1745525220933,11.3747989,151.91,151.9,4.87121898]
[1745525221953,11.3747989,151.91,151.86,6.58484277]
[1745525222150,11.3447989,151.89,151.86,6.58484277]
[1745525222738,11.3447989,151.89,151.87,7.30894902]
[1745525223148,11.3447989,151.9,151.87,7.30894902]
[1745525223556,11.3447989,151.9,151.87,4.87257472]
[1745525223756,11.3447989,151.9,151.88,4.87257472]
[1745525224738,11.3447989,151.9,151.89,4.87257472]
[1745525225942,11.3447989,151.9,151.86,6.58496754]
[1745525227160,0.03,151.91,151.87,4.87383351]
[1745525227456,11.3447989,151.9,151.87,4.87383351]
[1745525228061,0.03,151.91,151.87,4.87383351]
[1745525228273,0.03,151.91,151.87,16.21863241]
[1745525228561,0.03,151.91,151.9,11.3447989]
[1745525229067,0.03,151.91,151.9,16.21863241]
[1745525229556,0.03,151.91,151.9,18.65572548]
[1745525231163,0.03,151.91,151.9,25.23900395]
[1745525232366,0.03,151.91,151.9,44.03081438]
[1745525233474,0.03,151.91,151.9,25.23900395]
[1745525233654,0.03,151.91,151.9,13.89420505]
[1745525233982,0.03,151.91,151.9,7.31092658]
[1745525234158,11.3747989,151.91,151.9,7.31092658]
[1745525234752,11.3747989,151.91,151.9,4.87383351]
[1745525235256,11.3747989,151.91,151.88,6.58414412]
[1745525235453,11.3747989,151.91,151.85,6.58544616]
[1745525235454,11.3447989,151.89,151.85,6.58544616]
[1745525235673,1.6153,151.91,151.85,6.58544616]
[1745525235864,11.3447989,151.89,151.85,6.58544616]
[1745525236065,11.3447989,151.9,151.86,4.87790278]
[1745525237258,11.3447989,151.9,151.87,4.87790278]
[1745525237575,11.3447989,151.89,151.87,4.87790278]
[1745525237779,11.3447989,151.88,151.87,4.87790278]
[1745525238357,11.3447989,151.88,151.84,4.87790278]
[1745525238678,11.3447989,151.87,151.84,11.4636677]
[1745525238969,82.7,151.87,151.84,22.8084666]
[1745525239569,82.7,151.87,151.85,13.90333763]
[1745525240375,82.7,151.87,151.86,4.87790278]
[1745525241769,82.7,151.87,151.86,11.46291529]
[1745525242153,82.7,151.87,151.86,4.87790278]
[1745525242554,82.7,151.87,151.86,11.46291529]
[1745525243772,82.7,151.87,151.86,25.24942911]
[1745525244157,82.7,151.87,151.86,13.90463021]
[1745525246358,82.7,151.87,151.86,25.24942911]
[1745525246569,82.7,151.87,151.86,13.90463021]
[1745525248378,82.7,151.87,151.86,25.24942911]
[1745525249475,0.03,151.91,151.88,0.14216157]
[1745525249674,0.03,151.91,151.9,11.3447989]
[1745525249890,0.03,151.91,151.9,16.22270168]
[1745525250387,0.03,151.91,151.9,41.59779058]
[1745525250586,0.03,151.91,151.9,44.0395055]
[1745525252566,0.03,151.95,151.91,18.79181043]
[1745525252972,0.03,151.95,151.92,11.3447989]
[1745525253196,0.03,151.95,151.91,11.3447989]
[1745525253373,0.03,151.95,151.93,7.3196177]
[1745525253374,11.3747989,151.95,151.93,7.3196177]
[1745525253681,94.0447989,151.94,151.93,7.3196177]
[1745525253856,26.03,151.98,151.93,48.6004177]
[1745525253857,0.03,151.98,151.93,48.6004177]
[1745525254066,1e-08,152.0,151.99,38.55181043]
[1745525254375,0.03,152.04,152.03,25.36945957]
[1745525254687,0.9171469,152.09,152.04,0.14216157]
[1745525254870,0.9171469,152.09,152.08,11.3447989]
[1745525255284,0.9171469,152.09,152.08,17.62882894]
[1745525256262,0.9171469,152.09,152.08,36.42063937]
[1745525256469,0.9171469,152.09,152.08,42.99612595]
[1745525256669,0.9171469,152.09,152.08,47.83372503]
[1745525258203,0.9171469,152.09,152.08,41.25823845]
[1745525258568,0.9171469,152.09,152.08,36.42063937]
[1745525258779,0.9171469,152.09,152.08,17.62882894]
[1745525258973,0.9171469,152.09,152.0,24.20982894]
[1745525258974,0.9171469,152.09,152.04,18.64964886]
[1745525259179,0.9171469,152.09,152.06,17.62882894]
[1745525261282,0.9171469,152.09,152.01,18.79181043]
[1745525261494,0.9171469,152.09,152.04,17.62882894]
[1745525261495,18.54597584,152.09,152.04,17.62882894]
[1745525262600,0.9171469,152.09,152.05,17.62882894]
[1745525263186,0.9171469,152.09,152.06,17.62882894]
[1745525264301,0.9171469,152.09,152.08,17.62882894]
[1745525264587,0.9171469,152.09,152.08,42.99612595]
[1745525264798,0.9171469,152.09,152.08,60.62495489]
[1745525265679,0.9171469,152.09,152.08,73.80495489]
[1745525268079,0.9171469,152.09,152.08,56.17612595]
[1745525273098,0.9171469,152.09,152.08,38.54729701]
[1745525273277,0.9171469,152.09,152.08,56.17612595]
[1745525274003,0.03,152.16,152.09,18.79181043]
[1745525274174,0.03,152.16,152.13,18.64964886]
[1745525274379,0.03,152.16,152.13,36.2784778]
[1745525274879,0.03,152.16,152.14,17.77099051]
[1745525275398,0.03,152.16,152.15,42.99310075]
[1745525275602,0.03,152.16,152.15,25.36427181]
[1745525277587,0.03,152.16,152.15,42.99310075]
[1745525279209,0.03,152.16,152.15,25.36427181]
[1745525279700,17.65882894,152.16,152.12,6.5735948]
[1745525279903,17.62882894,152.15,152.12,6.5735948]
[1745525280409,17.62882894,152.14,152.09,125.12882894]
[1745525280586,17.62882894,152.13,152.1,31.82964886]
[1745525281095,0.03,152.16,152.13,18.64964886]
[1745525281294,0.03,152.16,152.14,0.14216157]
[1745525281501,17.65882894,152.16,152.14,0.14216157]
[1745525282010,0.03,152.16,152.14,6.71503448]
[1745525283514,17.62882894,152.15,152.13,6.71539195]
[1745525283897,17.62882894,152.15,152.13,18.79181043]
[1745525284211,17.62882894,152.14,152.11,25.22382454]
[1745525284509,17.62882894,152.13,152.11,18.64964886]
[1745525285707,17.62882894,152.13,152.11,25.2238292]
[1745525285906,17.62882894,152.12,152.1,13.18]
[1745525286114,17.62882894,152.11,152.07,31.94964886]
[1745525286297,17.62882894,152.1,152.07,31.94964886]
[1745525286692,17.62882894,152.1,152.08,6.57541523]
[1745525287636,17.62882894,152.11,152.08,6.57541523]
[1745525288607,17.62882894,152.1,152.08,6.57541523]
[1745525290518,17.62882894,152.1,152.09,11.38310013]
[1745525290721,17.62882894,152.12,152.09,30.17491056]
[1745525291422,17.62882894,152.12,152.1,4.80804589]
[1745525292534,17.62882894,152.13,152.11,6.57418973]
[1745525293026,17.62882894,152.13,152.1,4.80804589]
[1745525293027,17.62882894,152.12,152.1,6.5745084]
[1745525293326,17.62882894,152.11,152.1,6.5745084]
[1745525293698,17.62882894,152.12,152.1,6.5745084]
[1745525294823,17.62882894,152.12,152.11,4.83401397]
[1745525298942,17.62882894,152.12,152.11,7.26655701]
[1745525300215,17.62882894,152.12,152.11,13.84074674]
[1745525301729,17.62882894,152.12,152.11,13.84115965]
[1745525301912,17.62882894,152.12,152.11,2.43300215]
[1745525302231,17.62882894,152.12,152.11,7.29778758]
[1745525303113,17.62882894,152.14,152.11,7.29778758]
[1745525303435,17.62882894,152.14,152.12,2.43300215]
[1745525304025,17.62882894,152.14,152.12,9.0064825]
[1745525304418,17.62882894,152.14,152.13,7.29778758]
[1745525305729,17.62882894,152.14,152.13,2.43300215]
[1745525306208,17.62882894,152.14,152.09,6.5749055]
[1745525306532,17.62882894,152.1,152.09,6.5749055]
[1745525306910,17.62882894,152.1,152.06,13.3]
[1745525307140,0.03,152.16,152.09,62.2784778]
[1745525307321,17.62882894,152.14,152.1,0.14216157]
[1745525307519,17.62882894,152.14,152.11,4.87067402]
[1745525308020,17.62882894,152.14,152.11,11.44478624]
[1745525308221,17.62882894,152.14,152.12,4.87067402]
[1745525308609,17.62882894,152.13,152.12,4.87067402]
[1745525308816,17.62882894,152.13,152.12,7.30778808]
[1745525309834,17.62882894,152.14,152.12,7.30778808]
[1745525310153,17.62882894,152.13,152.12,7.30778808]
[1745525311330,11.28512014,152.13,152.12,4.87067402]
[1745525312109,17.85844558,152.13,152.12,4.87067402]
[1745525313240,17.85844558,152.13,152.07,38.52538862]
[1745525313413,11.28512014,152.09,152.08,2.44168262]
[1745525314117,11.28512014,152.1,152.08,7.32468819]
[1745525314325,11.28512014,152.11,152.08,7.32468819]
[1745525314619,11.28512014,152.1,152.09,2.44168262]
[1745525314812,11.28512014,152.11,152.09,2.44168262]
[1745525315337,11.28512014,152.11,152.1,2.44168262]
[1745525315532,11.28512014,152.11,152.1,7.32468819]
[1745525320416,11.28512014,152.11,152.1,4.88300557]
[1745525322653,17.85930987,152.11,152.1,4.88300557]
[1745525322954,11.28512014,152.11,152.1,4.88300557]
[1745525323257,11.28512014,152.11,152.06,6.71841684]
[1745525323456,11.28512014,152.08,152.06,6.71841684]
[1745525324143,11.28512014,152.08,152.07,2.43897866]
[1745525324546,11.28512014,152.08,152.07,7.31693239]
[1745525324752,6.57395763,152.12,152.07,7.31693239]
[1745525324953,11.28512014,152.08,152.07,4.877955]
[1745525326464,6.57392175,152.12,152.07,4.877955]
[1745525326664,11.28512014,152.08,152.07,4.877955]
[1745525328447,11.28512014,152.09,152.07,11.45379721]
[1745525328648,11.28512014,152.1,152.07,11.45379721]
[1745525328944,11.28512014,152.1,152.08,2.43687571]
[1745525329147,11.28512014,152.1,152.08,7.31483071]
[1745525329772,11.28512014,152.1,152.08,4.877955]
[1745525330168,11.28512014,152.1,152.09,4.877955]
[1745525331057,89.27344776,152.13,152.09,4.877955]
[1745525331058,82.7,152.13,152.09,4.877955]
[1745525331254,11.28512014,152.12,152.09,4.877955]
[1745525331449,11.28512014,152.12,152.1,2.43593097]
[1745525331670,11.28512014,152.12,152.1,7.31388597]
[1745525332255,11.28512014,152.11,152.1,4.877955]
[1745525333876,11.28512014,152.11,152.1,7.31336572]
[1745525334582,11.28512014,152.11,152.1,4.877955]
[1745525336359,11.28512014,152.11,152.1,7.31494977]
[1745525341591,93.98512014,152.13,152.1,4.877955]
[1745525341905,93.98512014,152.13,152.11,4.877955]
[1745525342768,93.98512014,152.13,152.12,7.31416282]
[1745525346198,11.28512014,152.13,152.12,7.31416282]
[1745525348375,11.28512014,152.13,152.12,4.877955]
[1745525348576,83.2,152.15,152.11,6.57416149]
[1745525348891,94.48512014,152.15,152.11,6.57416149]
[1745525349200,94.48512014,152.15,152.11,17.85928163]
[1745525349399,83.2,152.15,152.13,6.57332544]
[1745525349596,0.5,152.15,152.13,6.57332544]
[1745525350382,0.5,152.15,152.14,7.30354865]
[1745525352383,18.35758152,152.15,152.14,2.43421179]
[1745525352783,7.07246138,152.15,152.14,2.43421179]
[1745525352990,0.5,152.15,152.14,20.29222531]
[1745525353487,0.5,152.15,152.14,9.00710517]
[1745525353701,0.5,152.15,152.14,20.29222531]
[1745525354085,0.5,152.15,152.14,25.16091287]
[1745525354801,0.5,152.15,152.14,43.9527233]
[1745525358589,0.5,152.15,152.14,13.87579273]
[1745525362723,0.5,152.15,152.14,11.44158094]
[1745525363013,0.5,152.15,152.14,6.57289338]
[1745525363903,0.5,152.15,152.1,32.6125]
[1745525363904,11.78512014,152.15,152.1,25.22427081]
[1745525364089,11.28512014,152.14,152.1,25.22427081]
[1745525364296,0.5,152.15,152.12,11.42728171]
[1745525364509,11.78512014,152.15,152.12,0.14216157]
[1745525364687,0.5,152.15,152.12,11.42728171]
[1745525364886,11.78512014,152.15,152.12,0.14216157]
[1745525365914,11.78512014,152.15,152.13,6.57332544]
[1745525366087,11.78512014,152.15,152.13,9.0016313]
[1745525367019,11.78512014,152.15,152.13,6.57332544]
[1745525367502,0.5,152.15,152.13,6.57332544]
[1745525368511,11.78512014,152.15,152.13,6.57332544]
[1745525371226,0.5,152.15,152.13,6.57332544]
[1745525372020,11.78512014,152.15,152.13,6.57332544]
[1745525372518,0.5,152.15,152.13,17.85844558]
[1745525372898,0.5,152.15,152.14,16.14737682]
[1745525373626,0.5,152.15,152.14,7.29423316]
[1745525373797,0.5,152.15,152.14,13.86712654]
[1745525374121,0.5,152.15,152.14,25.15224668]
[1745525375507,0.5,152.15,152.14,43.94405711]
[1745525375705,0.5,152.15,152.14,57.12405711]
[1745525377516,0.5,152.15,152.14,45.83893697]
[1745525378917,0.5,152.15,152.14,57.12405711]
[1745525380323,0.5,152.15,152.14,43.94405711]
[1745525380524,0.5,152.15,152.14,13.86712654]
[1745525387933,0.5,152.15,152.14,43.94405711]
[1745525389735,0.03,152.19,152.15,18.79181043]
[1745525389935,0.03,152.19,152.18,30.07693057]
[1745525390127,0.03,152.19,152.18,43.25693057]
[1745525390324,0.03,152.19,152.18,45.68890705]
[1745525390638,82.7,152.25,152.19,18.79181043]
[1745525390846,11.28512014,152.26,152.21,30.07693057]
[1745525391340,11.28512014,152.26,152.21,39.07877762]
[1745525391811,11.28512014,152.26,152.21,43.9410343]
[1745525394407,82.7,152.27,152.21,43.9410343]
[1745525394627,93.98512014,152.27,152.21,43.9410343]
[1745525395639,11.28512014,152.26,152.21,43.9410343]
[1745525399934,11.28512014,152.26,152.21,37.37116373]
[1745525400136,11.28512014,152.25,152.21,37.37116373]
[1745525400336,11.28512014,152.23,152.21,7.29423316]
[1745525400645,11.28512014,152.24,152.21,7.29423316]
[1745525400849,11.28512014,152.24,152.21,2.43197648]
[1745525401024,11.28512014,152.24,152.2,11.28512014]
[1745525401219,82.7,152.25,152.21,29.934769]
[1745525401418,82.7,152.25,152.21,39.07548289]
[1745525401630,93.98512014,152.25,152.21,39.07548289]
[1745525402351,93.98512014,152.25,152.21,36.64680114]
[1745525402927,11.28512014,152.24,152.2,6.57018393]
[1745525403132,11.28512014,152.23,152.2,6.57018393]
[1745525403646,11.28512014,152.24,152.2,17.85530407]
[1745525405442,11.28512014,152.24,152.2,6.57018393]
[1745525405744,11.28512014,152.24,152.2,17.85530407]
[1745525406424,11.28512014,152.23,152.2,6.57018393]
[1745525406624,93.98512014,152.25,152.21,11.28512014]
[1745525406825,11.28512014,152.24,152.21,2.42611172]
[1745525407034,11.28512014,152.24,152.21,2.4258233]
[1745525407323,11.28512014,152.24,152.21,13.84718194]
[1745525407531,11.28512014,152.24,152.21,6.56987057]
[1745525409937,11.28512014,152.24,152.21,11.4227305]
[1745525410238,11.28512014,152.24,152.21,8.99693255]
[1745525410449,11.28512014,152.24,152.21,13.85122786]
[1745525411247,93.98512014,152.25,152.21,25.136348]
[1745525411439,82.7,152.25,152.21,25.136348]
[1745525411934,82.7,152.25,152.21,43.92815843]
[1745525412926,82.7,152.25,152.21,41.50109645]
[1745525413130,82.7,152.25,152.21,36.64680114]
[1745525413430,82.7,152.25,152.21,25.27603061]
[1745525414662,82.7,152.25,152.21,43.92567947]
[1745525416639,93.98512014,152.28,152.21,43.92567947]
[1745525416837,11.28512014,152.27,152.21,43.92567947]
[1745525417659,11.28512014,152.23,152.21,7.27887833]
[1745525417859,11.28512014,152.25,152.21,37.21364733]
[1745525418043,38.88202014,152.29,152.21,43.92567947]
[1745525418536,11.28512014,152.27,152.21,43.92567947]
[1745525418736,11.28512014,152.27,152.21,43.92858552]
[1745525419648,11.28512014,152.26,152.21,43.92858552]
[1745525420047,11.28512014,152.27,152.21,43.92858552]
[1745525420268,11.28512014,152.25,152.21,13.85165495]
[1745525420479,11.28512014,152.27,152.21,43.92858552]
[1745525422276,11.28512014,152.28,152.21,43.92858552]
[1745525422586,1.5969,152.29,152.21,43.92858552]
[1745525422587,0.03,152.29,152.26,0.14216157]
[1745525422882,0.03,152.29,152.26,11.42728171]
[1745525423172,0.03,152.29,152.26,11.28512014]
[1745525423555,11.31512014,152.29,152.25,43.094769]
[1745525424373,0.03,152.29,152.26,6.56771312]
[1745525424574,11.31512014,152.29,152.26,6.56771312]
[1745525425087,0.03,152.29,152.26,6.56771312]
[1745525425663,11.31512014,152.29,152.25,19.72796398]
[1745525425977,11.31512014,152.29,152.25,13.16]
[1745525425978,11.28512014,152.28,152.25,13.16]
[1745525426160,11.31512014,152.29,152.25,13.16]
[1745525427182,11.28512014,152.27,152.23,24.44512014]
[1745525428565,11.28512014,152.26,152.23,13.16]
[1745525428772,11.28512014,152.24,152.23,13.16]
[1745525428968,11.28512014,152.24,152.19,17.85566589]
[1745525429169,11.28512014,152.22,152.19,13.16]
[1745525429374,11.28512014,152.2,152.17,13.16]
[1745525429584,11.28512014,152.19,152.18,4.86082083]
[1745525429787,11.28512014,152.19,152.18,7.29217398]
[1745525430169,11.28512014,152.19,152.13,218.08]
[1745525430360,11.28512014,152.14,152.12,10.28854796]
[1745525430689,27.5671,152.18,152.12,10.28854796]
[1745525430690,11.28512014,152.13,152.12,10.28854796]
[1745525430984,17.85844558,152.13,152.12,10.28854796]
[1745525431287,24.21674496,152.13,152.12,10.28854796]
[1745525431466,24.21674496,152.13,152.12,8.62194796]
[1745525431792,26.0,152.11,152.1,20.29902185]
[1745525431973,43.64341952,152.11,152.1,20.29902185]
[1745525432686,43.64341952,152.11,152.05,0.063]
[1745525432985,17.64341952,152.08,152.05,0.063]
[1745525433160,17.64341952,152.1,152.05,17.70641952]
[1745525433363,17.64341952,152.08,152.05,0.063]
[1745525434076,17.64341952,152.07,152.05,0.063]
[1745525434287,17.64341952,152.06,152.05,0.063]
[1745525436594,24.21977096,152.06,152.05,0.063]
[1745525436908,30.79177096,152.06,152.05,0.063]
[1745525437270,113.49177096,152.06,152.05,0.063]
[1745525437889,145.70358139,152.06,152.05,0.063]
[1745525438088,126.91177096,152.06,152.05,0.063]
[1745525438401,120.33541952,152.06,152.05,0.063]
[1745525438562,37.63541952,152.06,152.05,0.063]
[1745525438763,24.21541952,152.06,152.05,0.063]
[1745525439791,30.79177096,152.06,152.05,0.063]
[1745525440590,106.91541952,152.06,152.05,0.063]
[1745525443592,113.49177096,152.06,152.05,0.063]
[1745525446090,30.79177096,152.06,152.05,0.063]
[1745525448393,49.58358139,152.06,152.05,0.063]
[1745525448602,30.79177096,152.06,152.05,0.063]
[1745525448994,24.21541952,152.06,152.05,0.063]
[1745525449175,43.64341952,152.06,152.05,0.063]
[1745525449376,17.64341952,152.06,152.05,0.063]
[1745525449878,17.64341952,152.07,152.05,0.063]
[1745525450092,17.64341952,152.08,152.05,0.063]
[1745525450371,17.64341952,152.09,152.06,6.57635144]
[1745525450981,17.64341952,152.09,152.05,6.639637]
[1745525451183,17.64341952,152.07,152.05,0.063]
[1745525451498,17.64341952,152.06,152.05,0.063]
[1745525451698,17.64341952,152.07,152.05,0.063]
[1745525452783,17.64341952,152.06,152.05,0.063]
[1745525453204,82.7,152.06,152.05,0.063]
[1745525455397,100.34341952,152.06,152.05,0.063]
[1745525457784,6.57553053,152.08,152.05,0.063]
[1745525458000,26.0,152.11,152.05,0.063]
[1745525458001,17.64341952,152.07,152.05,0.063]
[1745525459980,17.64341952,152.06,152.05,0.063]
[1745525460175,17.64341952,152.07,152.05,0.063]
[1745525460383,43.64341952,152.08,152.05,0.063]
[1745525462007,17.64341952,152.07,152.05,0.063]
[1745525462930,17.64341952,152.06,152.05,0.063]
[1745525463912,32.57557284,152.08,152.05,0.063]
[1745525464212,17.64341952,152.06,152.05,0.063]
[1745525467007,17.64341952,152.07,152.05,0.063]
[1745525467701,17.64341952,152.06,152.05,0.063]
[1745525469805,24.21977096,152.06,152.05,0.063]
[1745525471812,17.64341952,152.06,152.05,0.063]
[1745525472204,24.21977096,152.06,152.05,0.063]
[1745525473621,13.34,152.11,152.05,0.063]
[1745525473791,17.64341952,152.07,152.05,0.063]
[1745525475826,17.64341952,152.08,152.05,0.063]
[1745525477217,26.0,152.09,152.05,0.063]
[1745525477422,45.91420672,152.11,152.06,17.64341952]
[1745525477628,17.64341952,152.1,152.06,17.64341952]
[1745525477824,100.34341952,152.1,152.06,17.64341952]
[1745525478356,82.7,152.1,152.06,17.64341952]
[1745525478640,82.7,152.1,152.07,17.64341952]
[1745525478800,82.7,152.1,152.09,24.21847376]
[1745525479005,82.7,152.14,152.09,24.21847376]
[1745525479221,100.34341952,152.14,152.1,22.52571308]
[1745525479548,82.7,152.13,152.1,22.52571308]
[1745525480102,82.7,152.13,152.1,17.64341952]
[1745525481038,82.7,152.13,152.1,24.21788413]
[1745525482232,17.64341952,152.11,152.07,1.5418]
[1745525482731,17.64341952,152.09,152.05,17.70641952]
[1745525483107,17.64341952,152.09,152.05,24.28293856]
[1745525485507,17.64341952,152.08,152.05,0.063]
[1745525485803,6.57472742,152.1,152.05,0.063]
[1745525485804,17.64341952,152.07,152.05,0.063]
[1745525486004,17.64341952,152.06,152.05,0.063]
[1745525487449,24.21977096,152.06,152.05,0.063]
[1745525487618,82.7,152.11,152.05,17.70641952]
[1745525487940,82.7,152.11,152.1,17.64341952]
[1745525488239,82.7,152.14,152.1,17.64341952]
[1745525488537,100.34341952,152.14,152.1,17.64341952]
[1745525488741,100.34341952,152.14,152.09,17.64341952]
[1745525489432,100.34341952,152.14,152.09,24.21836023]
[1745525489932,17.64341952,152.12,152.07,17.64341952]
[1745525490130,82.7,152.14,152.07,17.64341952]
[1745525490131,17.64341952,152.11,152.07,17.64341952]
[1745525490354,17.64341952,152.1,152.07,6.57561119]
[1745525490638,17.64341952,152.1,152.06,25.84232116]
[1745525492134,17.64341952,152.08,152.05,6.63964087]
[1745525492437,17.64341952,152.08,152.05,0.063]
[1745525492838,17.64341952,152.09,152.05,6.63970997]
[1745525493031,17.64341952,152.08,152.05,6.63970997]
[1745525494241,17.64341952,152.07,152.05,0.063]
[1745525494543,6.57473844,152.1,152.05,0.063]
[1745525494544,17.64341952,152.06,152.05,0.063]
[1745525495612,82.7,152.07,152.05,0.063]
[1745525495811,100.34341952,152.1,152.06,17.64341952]
[1745525496034,100.34341952,152.1,152.07,6.57591898]
[1745525497256,0.03,152.19,152.09,17.64341952]
[1745525497568,43.64341952,152.17,152.1,13.34]
[1745525497718,17.64341952,152.12,152.1,15.7759668]
[1745525497927,82.7,152.18,152.1,15.7759668]
[1745525498115,17.64341952,152.13,152.1,22.35042089]
[1745525498721,17.64341952,152.14,152.1,22.35042089]
[1745525499029,17.64341952,152.14,152.1,19.91445409]
[1745525499416,28.20756062,152.14,152.1,19.91445409]
[1745525499721,28.20756062,152.12,152.1,13.34]
[1745525500224,28.20756062,152.12,152.08,36.25616062]
[1745525500819,28.20756062,152.12,152.08,42.83148705]
[1745525501647,28.20756062,152.11,152.06,28.20756062]
[1745525501851,28.20756062,152.1,152.07,4.87306904]
[1745525502857,28.20756062,152.1,152.05,34.84720566]
[1745525503037,28.20756062,152.09,152.05,34.84720566]
[1745525503443,28.20756062,152.1,152.06,28.20756062]
[1745525503642,28.20756062,152.11,152.07,28.20756062]
[1745525503848,110.90756062,152.12,152.07,28.20756062]
[1745525504951,82.7,152.12,152.08,28.20756062]
[1745525505327,110.90756062,152.12,152.08,28.20756062]
[1745525505527,110.90756062,152.12,152.07,34.78313818]
[1745525506056,82.7,152.12,152.07,34.78313818]
[1745525506234,82.7,152.12,152.08,28.20756062]
[1745525506431,110.90756062,152.12,152.08,28.20756062]
[1745525506632,82.7,152.12,152.08,28.20756062]
[1745525506946,82.7,152.12,152.08,34.78271897]
[1745525507643,110.90756062,152.12,152.08,34.78271897]
[1745525508251,26.0,152.13,152.08,34.78271897]
[1745525508252,82.7,152.14,152.1,28.20756062]
[1745525508427,82.7,152.14,152.11,28.20756062]
[1745525508632,110.90756062,152.17,152.12,28.20756062]
[1745525508846,110.90756062,152.17,152.13,6.57332544]
[1745525509041,110.90756062,152.17,152.13,34.78088606]
[1745525509455,110.90756062,152.17,152.13,6.57332544]
[1745525510685,82.7,152.17,152.13,6.57332544]
[1745525510850,28.20756062,152.16,152.12,34.78115323]
[1745525511057,28.20756062,152.14,152.11,1.6617]
[1745525512967,28.20756062,152.13,152.09,48.14260732]
[1745525515374,28.20756062,152.14,152.1,28.20756062]
[1745525516366,110.90756062,152.16,152.12,28.20756062]
[1745525516996,82.7,152.16,152.13,28.20756062]
[1745525517161,82.7,152.16,152.14,6.57289338]
[1745525520283,110.90756062,152.16,152.14,6.57289338]
[1745525520584,110.90756062,152.16,152.13,6.5731572]
[1745525521363,100.32423728,152.16,152.13,6.5731572]
[1745525522363,82.7,152.16,152.13,6.5731572]
[1745525522662,100.32423728,152.16,152.13,6.5731572]
[1745525523587,108.73,152.19,152.13,24.19739448]
[1745525523879,17.62423728,152.16,152.13,6.5731572]
[1745525524262,17.62423728,152.17,152.13,24.19739448]
[1745525527186,17.62423728,152.16,152.13,6.5731572]
[1745525529563,17.62423728,152.17,152.13,17.62423728]
[1745525530486,17.62423728,152.17,152.14,17.62423728]
[1745525531587,17.62423728,152.17,152.15,6.57246138]
[1745525531972,82.7,152.18,152.15,6.57246138]
[1745525532287,17.62423728,152.17,152.15,6.57246138]
[1745525533304,100.32423728,152.18,152.15,6.57246138]
[1745525533590,26.03,152.19,152.18,6.57116572]
[1745525533591,0.03,152.19,152.18,6.57116572]
[1745525533969,0.03,152.19,152.17,6.57140012]
[1745525534395,17.65423728,152.19,152.15,17.62423728]
[1745525534587,17.65423728,152.19,152.15,24.19669866]
[1745525534888,17.62423728,152.17,152.15,6.57246138]
[1745525535266,17.62423728,152.18,152.15,6.57246138]
[1745525536578,17.62423728,152.18,152.14,6.57274252]
[1745525536772,17.62423728,152.17,152.14,6.57274252]
[1745525536977,17.62423728,152.16,152.13,6.57320438]
[1745525539164,82.7,152.17,152.13,6.57320438]
[1745525539165,100.32423728,152.17,152.13,24.19744166]
[1745525539592,100.32423728,152.17,152.13,6.57320438]
[1745525541393,100.32423728,152.17,152.13,24.19744166]
[1745525541779,100.32423728,152.17,152.14,4.87296475]
[1745525542596,100.32423728,152.17,152.14,6.57247874]
[1745525544397,82.7,152.17,152.14,6.57247874]
[1745525547502,82.7,152.17,152.15,4.87498248]